{"text_format":"1","workbook":"xlsx","n_sheets":1,"sheets":["Feuil1"],"not_rendered":{"charts":0,"images":0,"macros":0,"external_links":0,"defined_names":0,"comments":0,"pivot_tables":0},"unopened":[],"bounds":{"document_bytes":16777216,"sheet_cells":100000,"rows_first":2000,"rows_last":500,"rows_between":2000,"halvings":0,"cell_chars":16384,"cell_head_chars":4096},"cells_cut":0,"cells_raw":0,"read":"whole","date_system":"1900"}

{"sheet":"Feuil1","index":0,"n_rows":56,"n_cols":9,"rows_kept":56,"cut":false,"hidden":false,"merged":[[0,2,0,3],[28,2,28,3],[0,4,0,5],[0,6,0,7]]}
[null,"Propriétaire"]
["Ventes à des tiers à port de camion (Grp produit 300)","Genre de","Valeur","Quantité ","Valeur","Quantité ","Valeur","Quantité ","Remarque"]
[null,"produit","Frs","m3","Frs","m3","Frs","m3"]
["Grumes résineuses",200]
["Grumes feuillues",205]
["Bois d'industrie résineux",201]
["Bois d'industrie feuillus",206]
["Bois d'énergie, résineux (bûches, incl. bois long)",202]
["Bois d'énergie, feuillus (bûches, incl. bois long)",207]
["Bois d'énergie résineux, déchiquetage",203]
["Bois d'énergie feuillu déchiquetage",208]
["Autres assortiments de bois résineux",204]
["Autres assortiments de bois feuillus",209]
["Total des ventes à port de camion",null,{"$f":"SUM(C4:C13)","v":0},0,0,0,0,0]
[]
["Ventes sur pied                              (Grp produit 320)","Genre de","Valeur","Quantité ","Valeur","Quantité ","Valeur","Quantité ","Remarque"]
[null,"produit","Frs","m3","Frs","m3","Frs","m3"]
["Grumes résineuses",200]
["Grumes feuillues",205]
["Bois d'industrie résineux",201]
["Bois d'industrie feuillus",206]
["Bois d'énergie, résineux (bûches, incl. bois long)",202]
["Bois d'énergie, feuillus (bûches, incl. bois long)",207]
["Bois d'énergie résineux (plaquettes)",203]
["Bois d'énergie feuillu (plaquettes)",208]
["Autres assortiments de bois résineux",204]
["Autres assortiments de bois feuillus",209]
["Total des ventes sur pied",null,{"$f":"SUM(C18:C27)","v":0},{"$f":"SUM(D18:D27)","v":0},{"$f":"SUM(E18:E27)","v":0},0,0,0]
[null,"Propriétaire"]
["Bois propre usage                        (Grp produit 31x)","Genre de","Valeur esti-","Quantité ","Valeur esti-","Quantité ","Valeur esti-","Quantité ","Remarque"]
[null,"produit"," mée  Frs","m3"," mée  Frs","m3"," mée  Frs","m3"]
["Grumes résineuses",200]
["Grumes feuillues",205]
["Bois d'industrie résineux",201]
["Bois d'industrie feuillus",206]
["Bois d'énergie, résineux (bûches, incl. bois long)",202]
["Bois d'énergie, feuillus (bûches, incl. bois long)",207]
["Bois d'énergie résineux (plaquettes)",203]
["Bois d'énergie feuillu (plaquettes)",208]
["Autres assortiments de bois résineux",204]
["Autres assortiments de bois feuillus",209]
["Total valeurs calculées du bois propre usage",null,{"$f":"SUM(C32:C41)","v":0},{"$f":"SUM(D32:D41)","v":0},0,0,0,0]
[]
["Inventaire final - bois invendus      (Grp produit 330)","Genre de","Valeur esti-","Quantité ","Valeur esti-","Quantité ","Valeur esti-","Quantité ","Remarque"]
[null,"produit"," mée  Frs","m3"," mée  Frs","m3"," mée  Frs","m3"]
["Grumes résineuses",200]
["Grumes feuillues",205]
["Bois d'industrie résineux",201]
["Bois d'industrie feuillus",206]
["Bois d'énergie, résineux (bûches, incl. bois long)",202]
["Bois d'énergie, feuillus (bûches, incl. bois long)",207]
["Bois d'énergie résineux (plaquettes)",203]
["Bois d'énergie feuillu (plaquettes)",208]
["Autres assortiments de bois résineux",204]
["Autres assortiments de bois feuillus",209]
["Total valeurs calculées des invendus",null,{"$f":"SUM(C46:C55)","v":0},{"$f":"SUM(D46:D55)","v":0},0,0,0,0]